bitfinex/quotes_SOLUSD_20241024
["timestamp","ask_amount","ask_price","bid_price","bid_amount"]
[1729769477100,21.6468,172.64,172.59,16.874276]
[1729769483603,38.521076,172.64,172.59,16.874276]
[1729769487822,38.521076,172.64,172.58,16.874276]
[1729769488520,16.874276,172.63,172.58,16.874276]
[1729769491099,21.6468,172.64,172.53,68.60292931]
[1729769491100,38.521076,172.64,172.59,16.874276]
[1729769492108,21.6468,172.64,172.59,16.874276]
[1729769492818,38.521076,172.64,172.59,16.874276]
[1729769493911,15.306,172.64,172.59,16.874276]
[1729769495035,32.180276,172.64,172.59,16.874276]
[1729769495220,23.743138,172.64,172.53,1.00582531]
[1729769495400,16.874276,172.6,172.53,1.00582531]
[1729769495605,16.874276,172.59,172.53,16.874276]
[1729769496821,16.874276,172.59,172.51,1.0077394]
[1729769497118,16.874276,172.59,172.53,16.874276]
[1729769499229,16.874276,172.59,172.54,16.874276]
[1729769500112,23.373876,172.61,172.56,16.874276]
[1729769502907,16.874276,172.58,172.52,8.437138]
[1729769503118,16.874276,172.58,172.52,16.874276]
[1729769505231,5.7937,172.6,172.52,16.874276]
[1729769505421,16.874276,172.58,172.53,16.874276]
[1729769506023,16.874276,172.58,172.5,15.1391]
[1729769506343,16.874276,172.58,172.53,16.874276]
[1729769506937,16.874276,172.57,172.48,6.5533]
[1729769507144,5.91949,172.59,172.46,15.2455]
[1729769507145,16.874276,172.54,172.46,15.2455]
[1729769507313,16.874276,172.54,172.49,16.874276]
[1729769507515,16.874276,172.57,172.51,16.874276]
[1729769508037,8.437138,172.57,172.52,16.874276]
[1729769508235,33.371876,172.58,172.53,16.874276]
[1729769508841,16.4976,172.58,172.53,16.874276]
[1729769510341,33.371876,172.58,172.53,16.874276]
[1729769513933,16.4976,172.58,172.53,16.874276]
[1729769515136,33.371876,172.58,172.53,16.874276]
[1729769517249,16.874276,172.56,172.5,16.874276]
[1729769518050,16.874276,172.56,172.46,15.2455]
[1729769518224,16.874276,172.55,172.49,16.874276]
[1729769518735,16.874276,172.56,172.5,16.874276]
[1729769519147,16.874276,172.56,172.51,16.874276]
[1729769520545,16.874276,172.56,172.5,16.874276]
[1729769521219,5.7948,172.57,172.44,7.2484023]
[1729769521220,16.874276,172.55,172.44,7.2484023]
[1729769521421,16.874276,172.55,172.5,16.874276]
[1729769525058,16.874276,172.55,172.49,16.874276]
[1729769525227,16.999766,172.52,172.44,0.6102023]
[1729769525427,16.999766,172.52,172.47,16.874276]
[1729769525730,0.12549,172.52,172.47,16.874276]
[1729769528740,16.999766,172.52,172.47,16.874276]
[1729769529831,0.12549,172.5,172.44,0.6102023]
[1729769530157,0.12549,172.5,172.45,16.874276]
[1729769530519,0.12549,172.5,172.44,0.6102023]
[1729769530520,0.12549,172.5,172.46,16.874276]
[1729769532027,0.12549,172.5,172.45,16.874276]
[1729769532227,15.4209,172.52,172.47,16.874276]
[1729769532426,6.3874,172.55,172.5,16.874276]
[1729769532749,6.3874,172.55,172.52,16.874276]
[1729769533651,6.3874,172.55,172.51,16.874276]
[1729769534846,20.0,172.58,172.54,16.874276]
[1729769535037,6.2152,172.59,172.55,16.874276]
[1729769535828,6.2152,172.59,172.56,16.874276]
[1729769536929,6.2152,172.59,172.49,0.12549]
[1729769537277,6.2152,172.59,172.55,16.874276]
[1729769541158,6.2152,172.59,172.56,16.874276]
[1729769541657,30.0,172.57,172.56,16.874276]
[1729769546034,15.6492,172.6,172.56,16.874276]
[1729769546234,15.6492,172.6,172.57,16.874276]
[1729769548136,20.12549,172.61,172.58,16.874276]
[1729769548330,20.12549,172.61,172.57,16.874276]
[1729769549060,14.4796,172.66,172.5,450.7273]
[1729769549061,21.94105796,172.92,172.84,0.1]
[1729769549251,0.6102023,173.04,172.94,0.1]
[1729769549455,0.6102023,173.04,172.85,9.42055092]
[1729769549456,0.6102023,173.04,173.03,0.32549]
[1729769549642,12.06648853,173.25,173.15,0.1]
[1729769549833,28.06592855,173.43,173.15,0.1]
[1729769549834,6.2289,173.4,173.15,0.1]
[1729769550152,0.1,173.46,173.24,0.12549]
[1729769550349,0.1,173.46,173.27,0.1]
[1729769550657,7.36661983,173.33,173.27,0.1]
[1729769550959,16.874276,173.28,173.2,16.874276]
[1729769551158,0.1,173.36,173.27,8.437138]
[1729769551341,16.874276,173.3,173.19,0.25098]
[1729769551547,16.72355012,173.28,173.22,0.12549]
[1729769551736,16.874276,173.29,173.22,0.12549]
[1729769551944,15.374276,173.29,173.22,0.12549]
[1729769552234,46.58711832,173.26,173.19,46.58711832]
[1729769552439,46.58711832,173.27,173.19,46.58711832]
[1729769552843,0.12549,173.26,173.19,46.58711832]
[1729769553036,46.58711832,173.27,173.19,46.58711832]
[1729769553241,46.58711832,173.27,173.2,46.58711832]
[1729769553437,0.12549,173.26,173.2,46.58711832]
[1729769553640,46.58711832,173.27,173.2,46.58711832]
[1729769554154,0.12549,173.26,173.22,46.58711832]
[1729769554356,46.58711832,173.32,173.25,46.58711832]
[1729769554545,46.58711832,173.31,173.24,46.58711832]
[1729769555065,46.58711832,173.32,173.25,46.58711832]
[1729769555440,46.58711832,173.31,173.24,46.58711832]
[1729769556463,0.12549,173.3,173.24,46.58711832]
[1729769556853,0.25098,173.34,173.24,46.58711832]
[1729769557057,0.12549,173.3,173.25,46.58711832]
[1729769557243,46.71260832,173.26,173.13,0.1]
[1729769557443,0.12549,173.26,173.23,46.58711832]
[1729769557639,13.60325463,173.25,173.22,23.29355916]
[1729769557846,13.60325463,173.24,173.22,23.29355916]
[1729769558055,13.60324831,173.23,173.15,0.1]
[1729769558265,0.12549,173.28,173.22,46.58711832]
[1729769558465,0.12549,173.26,173.24,46.58711832]
[1729769558658,0.12549,173.28,173.23,46.58711832]
[1729769558864,0.12549,173.28,173.22,46.58711832]
[1729769559051,0.12549,173.28,173.21,46.58711832]
[1729769559250,46.71260832,173.28,173.21,46.58711832]
[1729769559573,0.12549,173.28,173.21,46.58711832]
[1729769563340,46.71260832,173.26,173.19,46.58711832]
[1729769563539,0.12549,173.27,173.19,46.58711832]
[1729769563767,0.12549,173.24,173.19,46.58711832]
[1729769563954,46.71260832,173.24,173.18,46.58711832]
[1729769564343,23.29355916,173.26,173.2,46.58711832]
[1729769564550,20.0,173.27,173.22,46.58711832]
[1729769564853,5.7705,173.3,173.26,46.58711832]
[1729769565259,0.12549,173.29,173.25,46.58711832]
[1729769565452,0.12549,173.29,173.24,46.58711832]
[1729769566668,0.12549,173.29,173.1,46.58711832]
[1729769566669,0.12549,173.27,173.22,46.58711832]
[1729769566967,46.71260832,173.27,173.21,46.58711832]
[1729769567353,0.12549,173.28,173.23,46.58711832]
[1729769567552,70.61498232,173.28,173.22,46.58711832]
[1729769568264,5.7713,173.27,173.22,46.58711832]
[1729769569471,25.7703,173.3,173.24,46.58711832]
[1729769569665,0.12549,173.29,173.24,46.58711832]
[1729769569870,46.71260832,173.29,173.23,46.58711832]
[1729769570081,0.12549,173.29,173.24,46.58711832]
[1729769570374,0.12549,173.29,173.23,46.58711832]
[1729769570672,0.12549,173.27,173.22,46.58711832]
[1729769571175,46.71260832,173.27,173.2,46.58711832]
[1729769571354,46.71260832,173.27,173.21,46.58711832]
[1729769571676,5.7716,173.26,173.21,46.58711832]
[1729769571876,0.12549,173.25,173.21,46.58711832]
[1729769572848,0.12549,173.28,173.21,46.58711832]
[1729769573144,29.673374,173.28,173.22,46.58711832]
[1729769573666,5.89649,173.28,173.22,46.58711832]
[1729769573969,5.89649,173.28,173.23,46.58711832]
[1729769574176,5.89649,173.28,173.25,46.58711832]
[1729769574353,5.89649,173.28,173.26,46.58711832]
[1729769574761,5.89649,173.28,173.25,46.58711832]
[1729769575453,5.89649,173.28,173.24,46.58711832]
[1729769576071,5.89649,173.28,173.23,46.58711832]
[1729769576472,5.89649,173.28,173.22,46.58711832]
[1729769577864,5.89649,173.28,173.23,46.58711832]
[1729769578056,5.89649,173.28,173.24,46.58711832]
[1729769578257,5.89649,173.28,173.25,46.58711832]
[1729769578665,5.89649,173.28,173.24,46.58711832]
[1729769578862,5.89649,173.28,173.23,46.58711832]
[1729769580879,5.7706,173.29,173.27,46.58711832]
[1729769581372,5.7706,173.29,173.2,46.58711832]
[1729769581373,5.7706,173.29,173.26,46.58711832]
[1729769581769,5.7706,173.29,173.18,0.1]
[1729769582072,5.7706,173.29,173.24,46.58711832]
[1729769582295,5.7706,173.29,173.22,29.10430394]
[1729769582296,0.12549,173.28,173.22,29.10430394]
[1729769582672,29.22979394,173.28,173.22,29.10430394]
[1729769583481,5.7713,173.27,173.17,0.12549]
[1729769583663,34.87560394,173.27,173.21,29.10430394]
[1729769584377,52.3451948,173.27,173.21,46.5738948]
[1729769584760,46.6993848,173.26,173.13,9.85210492]
[1729769584981,46.5738948,173.25,173.19,46.5738948]
[1729769585578,5.7723,173.24,173.19,46.5738948]
[1729769587770,52.3461948,173.24,173.19,46.5738948]
[1729769588085,5.7723,173.24,173.2,46.5738948]
[1729769588279,5.7723,173.24,173.21,46.5738948]
[1729769588981,46.6993848,173.26,173.2,46.5738948]
[1729769589181,5.772,173.25,173.2,46.5738948]
[1729769589371,52.3448948,173.28,173.22,46.5738948]
[1729769589577,4.27796243,173.27,173.22,0.12549]
[1729769589777,5.7697,173.32,173.22,0.25098]
[1729769590275,5.7697,173.32,173.3,46.5738948]
[1729769590581,5.89459,173.34,173.3,46.5738948]
[1729769591166,5.7691,173.34,173.3,46.5738948]
[1729769591370,5.7691,173.34,173.29,46.5738948]
[1729769591565,52.3429948,173.34,173.29,46.5738948]
[1729769591760,5.7691,173.34,173.29,46.5738948]
[1729769593688,5.7691,173.34,173.3,46.5738948]
[1729769594263,52.3425948,173.35,173.3,46.5738948]
[1729769594691,52.3425948,173.35,173.29,46.5738948]
[1729769595189,11.22384975,173.34,173.29,46.5738948]
[1729769595396,11.22384975,173.33,173.3,46.6993848]
[1729769595690,11.22384975,173.32,173.3,46.6993848]
[1729769595992,4.31686529,173.31,173.3,46.6993848]
[1729769596393,5.7688,173.35,173.3,46.6993848]
[1729769596700,11.21760667,173.34,173.32,46.5738948]
[1729769596867,4.3144641,173.33,173.32,46.5738948]
[1729769597072,11.21762665,173.33,173.31,46.5738948]
[1729769597272,4.3144641,173.32,173.31,46.5738948]
[1729769597789,4.31292316,173.32,173.31,46.5738948]
[1729769598503,4.31292316,173.32,173.3,46.5738948]
[1729769598698,4.31292316,173.31,173.28,46.5738948]
[1729769598882,46.5738948,173.35,173.29,46.5738948]
[1729769599078,11.21081554,173.34,173.29,46.5738948]
[1729769599277,11.21081554,173.33,173.3,46.5738948]
[1729769599477,4.31185213,173.32,173.3,46.5738948]
[1729769599688,4.31185213,173.31,173.3,46.5738948]
[1729769600592,4.31185213,173.31,173.3,46.8248748]
[1729769600785,0.6102023,173.39,173.31,24.027864]
[1729769600996,11.20553769,173.38,173.36,46.5738948]
[1729769601286,11.20553769,173.37,173.36,46.5738948]
[1729769601494,4.30982219,173.37,173.35,46.5738948]
[1729769601683,0.6102023,173.39,173.35,46.6993848]
[1729769601880,11.19888459,173.38,173.35,46.6993848]
[1729769602101,4.3072633,173.37,173.35,46.6993848]
[1729769602301,0.6102023,173.39,173.37,0.12549]
[1729769602499,0.6102023,173.39,173.38,71.2244168]
[1729769602978,0.6102023,173.39,173.38,46.5738948]
[1729769603381,0.6102023,173.39,173.38,70.4762688]
[1729769603774,0.6102023,173.39,173.38,46.5738948]
[1729769604280,0.6102023,173.39,173.37,46.5738948]
[1729769604486,0.6102023,173.39,173.36,46.5738948]
[1729769604798,0.6102023,173.39,173.35,46.5738948]
[1729769604993,0.6102023,173.39,173.38,0.12549]
[1729769605179,0.6102023,173.39,173.38,46.6993848]
[1729769606381,0.6102023,173.39,173.38,29.17805982]
[1729769608812,0.6102023,173.39,173.38,53.18043382]
[1729769609510,0.6102023,173.39,173.38,82.35849364]
[1729769609695,0.6102023,173.39,173.38,53.30592382]
[1729769611298,0.6102023,173.39,173.38,53.18043382]
[1729769611804,0.6102023,173.39,173.38,53.30592382]
[1729769612402,0.6102023,173.39,173.38,53.18043382]
[1729769612714,0.6102023,173.39,173.38,53.30592382]
[1729769612905,0.6102023,173.39,173.38,53.18043382]
[1729769613398,0.6102023,173.39,173.38,53.08043382]
[1729769613594,0.6102023,173.39,173.38,29.05256982]
[1729769614408,0.6102023,173.39,173.38,29.46345931]
[1729769614912,0.6102023,173.39,173.38,53.49132331]
[1729769618202,0.6102023,173.39,173.38,24.43875349]
[1729769618508,0.6102023,173.39,173.38,53.49132331]
[1729769619700,0.6102023,173.39,173.38,24.43875349]
[1729769619905,0.6102023,173.39,173.38,53.49132331]
[1729769622305,0.6102023,173.39,173.38,53.08043382]
[1729769623708,0.6102023,173.39,173.38,52.95494382]
[1729769624411,0.6102023,173.39,173.38,53.08043382]
[1729769624998,0.6102023,173.39,173.38,29.17805982]
[1729769627217,0.6102023,173.39,173.38,53.08043382]
[1729769627530,34.81586982,173.51,173.41,0.1]
[1729769627822,5.7627,173.53,173.46,29.05256982]
[1729769628525,29.05256982,173.5,173.45,29.05256982]
[1729769628727,5.7636,173.5,173.45,29.05256982]
[1729769629024,34.81616982,173.5,173.45,29.05256982]
[1729769629197,6.5687,173.54,173.49,29.05256982]
[1729769629527,0.6102023,173.56,173.53,29.05256982]
[1729769630304,0.6102023,173.56,173.55,29.05256982]
[1729769630521,0.6102023,173.56,173.53,29.05256982]
[1729769631001,6.3721023,173.56,173.52,29.05256982]
[1729769631200,0.6102023,173.56,173.52,29.17805982]
[1729769631397,0.6102023,173.56,173.53,29.05256982]
[1729769632202,0.6102023,173.56,173.52,29.17805982]
[1729769632400,29.66277212,173.56,173.51,29.05256982]
[1729769632600,35.42457212,173.56,173.5,29.05256982]
[1729769632801,29.05256982,173.54,173.49,29.05256982]
[1729769633097,29.05256982,173.52,173.47,29.05256982]
[1729769634810,0.7102023,173.56,173.49,29.05256982]
[1729769635113,0.6102023,173.56,173.53,29.05256982]
[1729769635997,0.6102023,173.56,173.54,14.52628491]
[1729769636202,0.5,173.64,173.61,0.1]
[1729769636402,0.5,173.65,173.64,24.127864]
[1729769636614,0.6102023,173.73,173.64,53.08043382]
[1729769636818,0.6102023,173.73,173.64,24.027864]
[1729769637228,0.6102023,173.73,173.72,14.52628491]
[1729769637406,0.6102023,173.73,173.68,14.52628491]
[1729769637722,15.13648721,173.73,173.66,14.52628491]
[1729769637927,0.6102023,173.73,173.67,29.05256982]
[1729769638219,0.6102023,173.73,173.69,29.05256982]
[1729769638428,0.6102023,173.73,173.7,46.3110735]
[1729769638621,0.6102023,173.73,173.68,46.3110735]
[1729769638928,0.6102023,173.73,173.69,23.15553675]
[1729769639112,0.6102023,173.73,173.7,46.3110735]
[1729769639511,0.6102023,173.73,173.71,46.3110735]
[1729769639714,0.6102023,173.73,173.72,46.3110735]
[1729769639910,0.6102023,173.73,173.71,46.3110735]
[1729769640222,0.6102023,173.73,173.72,0.12549]
[1729769640833,0.6102023,173.73,173.69,46.3110735]
[1729769641010,0.6102023,173.73,173.66,0.1]
[1729769641011,0.6102023,173.73,173.7,46.4365635]
[1729769641212,0.6102023,173.73,173.71,46.3110735]
[1729769641427,0.6102023,173.73,173.7,46.4365635]
[1729769641629,0.6102023,173.73,173.65,0.12549]
[1729769641930,46.9212758,173.73,173.67,46.3110735]
[1729769642355,46.3110735,173.72,173.65,46.3110735]
[1729769642538,0.6102023,173.73,173.68,46.3110735]
[1729769643111,0.6102023,173.73,173.67,46.3110735]
[1729769643311,46.9212758,173.73,173.67,46.3110735]
[1729769643718,46.3110735,173.72,173.68,0.12549]
[1729769643914,46.3110735,173.72,173.67,0.12549]
[1729769644114,0.6102023,173.73,173.66,46.4365635]
[1729769644432,0.6102023,173.73,173.72,46.4365635]
[1729769644740,0.6102023,173.73,173.72,71.5895775]
[1729769645140,0.6102023,173.73,173.72,71.4895775]
[1729769645813,0.6102023,173.73,173.72,70.3389375]
[1729769646214,0.6102023,173.73,173.71,23.15553675]
[1729769646514,46.9212758,173.73,173.66,46.3110735]
[1729769646720,46.3110735,173.72,173.66,46.3110735]
[1729769647233,46.3110735,173.71,173.65,46.3110735]
[1729769647630,0.6102023,173.73,173.68,46.3110735]
[1729769647821,46.9212758,173.73,173.67,46.3110735]
[1729769648137,0.6102023,173.73,173.67,46.3110735]
[1729769648337,46.3110735,173.71,173.66,46.3110735]
[1729769648537,46.3110735,173.71,173.65,46.3110735]
[1729769648722,46.3110735,173.72,173.66,46.3110735]
[1729769649043,0.6102023,173.73,173.68,46.4365635]
[1729769649219,52.6773758,173.73,173.68,0.12549]
[1729769649419,46.9212758,173.73,173.68,0.12549]
[1729769649744,46.3110735,173.72,173.68,0.12549]
[1729769649918,46.3110735,173.72,173.67,0.12549]
[1729769650122,46.3110735,173.72,173.67,23.902374]
[1729769650326,46.3110735,173.71,173.65,0.12549]
[1729769650525,6.3665023,173.73,173.63,46.3110735]
[1729769650728,6.3665023,173.73,173.64,46.3110735]
[1729769650729,46.3110735,173.7,173.64,46.3110735]
[1729769650929,46.3110735,173.71,173.65,46.3110735]
[1729769651217,23.15553675,173.69,173.62,46.3110735]
[1729769651420,0.6102023,173.73,173.62,0.2]
[1729769651622,46.9212758,173.73,173.67,46.3110735]
[1729769651917,46.3110735,173.7,173.63,46.3110735]
[1729769652129,46.3110735,173.72,173.66,46.3110735]
[1729769652340,46.3110735,173.72,173.65,46.3110735]
[1729769652634,46.3110735,173.67,173.61,46.3110735]
[1729769652839,6.29,173.71,173.56,9.32330895]
[1729769653029,6.29,173.71,173.59,46.3110735]
[1729769653030,46.3110735,173.65,173.59,46.3110735]
[1729769653236,6.29,173.71,173.63,46.3110735]
[1729769653433,46.3110735,173.69,173.63,46.3110735]
[1729769653638,46.3110735,173.71,173.65,46.3110735]
[1729769653932,0.6102023,173.73,173.7,46.3110735]
[1729769654135,0.6102023,173.73,173.65,9.32330895]
[1729769654136,0.6102023,173.73,173.72,46.4365635]
[1729769654327,0.6102023,173.73,173.72,70.3389375]
[1729769655541,6.4109,173.87,173.74,0.35098]
[1729769655851,46.3110735,173.86,173.81,46.3110735]
[1729769656336,46.3110735,173.84,173.78,46.3110735]
[1729769656546,46.3110735,173.84,173.79,0.12549]
[1729769656837,46.3110735,173.81,173.75,46.4365635]
[1729769657043,46.3110735,173.81,173.75,46.3110735]
[1729769657244,46.3110735,173.8,173.75,0.12549]
[1729769657446,23.15553675,173.79,173.73,23.15553675]
[1729769657762,46.3110735,173.77,173.71,52.89360625]
[1729769657925,46.3110735,173.77,173.71,46.3110735]
[1729769658123,46.3110735,173.77,173.72,46.3110735]
[1729769658318,46.3110735,173.8,173.74,46.3110735]
[1729769658529,46.3110735,173.81,173.75,46.3110735]
[1729769659329,46.3110735,173.81,173.76,46.3110735]
[1729769659648,46.3110735,173.84,173.78,46.3110735]
[1729769659826,46.3110735,173.83,173.77,46.4365635]
[1729769660427,46.3110735,173.82,173.77,46.4365635]
[1729769660634,46.3110735,173.81,173.75,46.3110735]
[1729769660840,46.3110735,173.81,173.76,0.12549]
[1729769661034,46.3110735,173.78,173.72,46.3110735]
[1729769661222,46.3110735,173.77,173.71,46.3110735]
[1729769662034,46.3110735,173.79,173.73,46.3110735]
[1729769662338,46.3110735,173.82,173.76,46.3110735]
[1729769663228,46.3110735,173.8,173.74,46.3110735]
[1729769663425,46.3110735,173.75,173.69,46.3110735]
[1729769663631,46.3110735,173.74,173.68,46.3110735]
[1729769664131,48.8954,173.84,173.72,23.15553675]
[1729769664132,23.15553675,173.77,173.72,23.15553675]
[1729769664335,46.3110735,173.78,173.72,46.3110735]
[1729769664645,46.3110735,173.78,173.73,46.3110735]
[1729769664945,46.3110735,173.79,173.73,46.3110735]
[1729769665830,46.3110735,173.81,173.75,46.3110735]
[1729769666033,61.9320735,173.84,173.78,66.3110735]
[1729769666352,46.3110735,173.83,173.77,46.3110735]
[1729769666525,46.3110735,173.83,173.74,0.12549]
[1729769666526,61.9320735,173.84,173.78,46.3110735]
[1729769666944,61.9320735,173.84,173.79,46.3110735]
[1729769667141,61.9320735,173.84,173.78,46.3110735]
[1729769668838,15.621,173.84,173.79,46.3110735]
[1729769670352,46.3110735,173.82,173.76,46.3110735]
[1729769670652,46.3110735,173.81,173.75,46.3110735]
[1729769670841,46.3110735,173.82,173.76,46.3110735]
[1729769672235,61.9320735,173.84,173.78,46.3110735]
[1729769672630,46.3110735,173.82,173.76,46.3110735]
[1729769673035,46.3110735,173.81,173.75,46.3110735]
[1729769673541,5.753,173.83,173.76,46.3110735]
[1729769673738,46.3110735,173.82,173.77,46.3110735]
[1729769674066,15.621,173.84,173.79,46.3110735]
[1729769674264,15.621,173.84,173.79,28.91560726]
[1729769675368,44.53660726,173.84,173.78,29.04109726]
[1729769676360,28.91560726,173.83,173.78,28.91560726]
[1729769676550,44.53660726,173.84,173.78,28.91560726]
[1729769677042,28.91560726,173.83,173.78,28.91560726]
[1729769677564,28.91560726,173.83,173.77,28.91560726]
[1729769678236,28.91560726,173.82,173.76,28.91560726]
[1729769678635,28.91560726,173.83,173.77,28.91560726]
[1729769679537,44.53660726,173.84,173.78,28.91560726]
[1729769679742,44.53660726,173.84,173.79,0.12549]
[1729769679942,28.91560726,173.85,173.79,29.04109726]
[1729769681553,28.91560726,173.86,173.8,28.91560726]
[1729769682141,28.91560726,173.85,173.79,29.04109726]
[1729769682846,28.91560726,173.86,173.8,28.91560726]
[1729769683144,6.4109,173.87,173.79,29.04109726]
[1729769683145,28.91560726,173.85,173.79,29.04109726]
[1729769683539,28.91560726,173.83,173.78,28.91560726]
[1729769683762,28.91560726,173.83,173.77,28.91560726]
[1729769684160,28.91560726,173.83,173.78,28.91560726]
[1729769684966,28.91560726,173.84,173.78,28.91560726]
[1729769685462,28.91560726,173.83,173.78,28.91560726]
[1729769687256,28.91560726,173.84,173.78,28.91560726]
[1729769687564,28.91560726,173.83,173.77,28.91560726]
[1729769688146,28.91560726,173.85,173.79,28.91560726]
[1729769688644,28.91560726,173.84,173.78,28.91560726]
[1729769689051,28.91560726,173.83,173.77,28.91560726]
[1729769689258,6.4109,173.87,173.8,28.91560726]
[1729769689564,28.91560726,173.86,173.81,28.91560726]
[1729769689878,28.91560726,173.86,173.74,0.25098]
[1729769690066,28.91560726,173.86,173.81,28.91560726]
[1729769690359,28.91560726,173.86,173.8,28.91560726]
[1729769690563,28.91560726,173.85,173.79,28.91560726]
[1729769690763,12.1623,173.87,173.77,28.91560726]
[1729769690764,28.91560726,173.83,173.77,28.91560726]
[1729769691366,28.91560726,173.82,173.76,28.91560726]
[1729769691561,28.91560726,173.8,173.75,28.91560726]
[1729769691868,28.91560726,173.81,173.75,28.91560726]
[1729769692364,28.91560726,173.77,173.72,28.91560726]
[1729769692664,28.91560726,173.78,173.72,28.91560726]
[1729769693749,28.91560726,173.76,173.7,28.91560726]
[1729769693953,28.91560726,173.76,173.71,28.91560726]
[1729769694161,28.91560726,173.77,173.72,28.91560726]
[1729769694346,44.84610726,173.78,173.72,28.91560726]
[1729769695249,50.60050726,173.78,173.72,28.91560726]
[1729769695444,44.84610726,173.78,173.72,28.91560726]
[1729769695656,15.9305,173.78,173.73,28.91560726]
[1729769696672,15.9305,173.78,173.72,28.91560726]
[1729769696673,44.84610726,173.78,173.72,28.91560726]
[1729769697166,28.91560726,173.77,173.71,28.91560726]
[1729769698156,28.91560726,173.76,173.7,28.91560726]
[1729769698847,28.91560726,173.71,173.65,0.308171]
[1729769699059,28.91560726,173.71,173.66,28.91560726]
[1729769699268,28.91560726,173.72,173.66,28.91560726]
[1729769699846,28.91560726,173.72,173.67,28.91560726]
[1729769700047,28.91560726,173.73,173.67,28.91560726]
[1729769700248,28.91560726,173.74,173.68,28.91560726]
[1729769700670,6.5185,173.75,173.7,28.91560726]
[1729769701055,6.5185,173.75,173.62,1.10057021]
[1729769701056,28.91560726,173.74,173.68,28.91560726]
[1729769701250,28.91560726,173.73,173.68,28.91560726]
[1729769702474,28.91560726,173.73,173.67,28.91560726]
[1729769702956,28.91560726,173.7,173.65,28.91560726]
[1729769703151,28.91560726,173.69,173.63,28.91560726]
[1729769703464,28.91560726,173.66,173.61,28.91560726]
[1729769703849,28.91560726,173.66,173.6,29.91716472]
[1729769704174,28.91560726,173.66,173.61,28.91560726]
[1729769705164,28.91560726,173.65,173.59,28.91560726]
[1729769705557,5.858,173.68,173.58,28.91560726]
[1729769705558,28.91560726,173.63,173.58,28.91560726]
[1729769705756,28.91560726,173.64,173.58,28.91560726]
[1729769706348,28.91560726,173.63,173.57,28.91560726]
[1729769706575,28.91560726,173.61,173.56,28.91560726]
[1729769706881,28.91560726,173.62,173.56,28.91560726]
[1729769707779,28.91560726,173.6,173.55,0.30834856]
[1729769707983,28.91560726,173.59,173.54,28.91560726]
[1729769708171,28.91560726,173.59,173.53,28.91560726]
[1729769708372,28.91560726,173.58,173.52,28.91560726]
[1729769709679,28.91560726,173.61,173.56,28.91560726]
[1729769709980,6.2702,173.64,173.6,14.45780363]
[1729769710286,6.2702,173.64,173.59,46.36498116]
[1729769711583,52.63518116,173.64,173.58,46.36498116]
[1729769711784,46.36498116,173.63,173.57,46.36498116]
[1729769712885,52.63518116,173.64,173.58,46.36498116]
[1729769713775,6.2702,173.64,173.59,46.36498116]
[1729769713991,52.63518116,173.64,173.59,46.36498116]
[1729769714189,6.2702,173.64,173.59,46.36498116]
[1729769714494,46.36498116,173.66,173.6,46.36498116]
[1729769714698,62.92778116,173.67,173.61,46.36498116]
[1729769716472,46.36498116,173.66,173.54,0.12549]
[1729769716670,46.36498116,173.66,173.6,46.36498116]
[1729769716882,46.36498116,173.66,173.54,0.12549]
[1729769717185,46.36498116,173.66,173.6,46.36498116]
[1729769718464,16.5628,173.67,173.59,46.36498116]
[1729769718465,46.36498116,173.65,173.59,46.36498116]
[1729769719773,46.36498116,173.63,173.57,46.36498116]
[1729769719974,46.36498116,173.62,173.56,46.36498116]
[1729769721368,46.36498116,173.6,173.55,46.36498116]
[1729769721569,46.36498116,173.59,173.54,46.36498116]
[1729769721776,46.36498116,173.59,173.53,46.36498116]
[1729769721977,46.36498116,173.58,173.53,46.36498116]
[1729769722189,46.36498116,173.59,173.54,46.36498116]
[1729769722588,46.36498116,173.58,173.53,46.36498116]
[1729769723398,46.36498116,173.59,173.53,46.36498116]
[1729769725693,46.36498116,173.58,173.52,46.36498116]
[1729769725878,46.36498116,173.57,173.51,46.36498116]
[1729769726081,46.36498116,173.55,173.5,1.0020705]
[1729769726273,68.77808116,173.57,173.51,46.36498116]
[1729769726800,68.77808116,173.57,173.52,46.36498116]
[1729769728193,68.77808116,173.57,173.51,46.36498116]
[1729769728583,22.4131,173.57,173.52,46.36498116]
[1729769729196,22.4131,173.57,173.53,46.36498116]
[1729769729376,46.36498116,173.59,173.53,46.36498116]
[1729769730794,6.1143,173.61,173.53,46.36498116]
[1729769730795,46.36498116,173.58,173.53,46.36498116]
[1729769731898,46.36498116,173.58,173.52,46.36498116]
[1729769732098,46.36498116,173.58,173.53,46.36498116]
[1729769732418,29.00090106,173.58,173.53,29.00090106]
[1729769733101,29.00090106,173.58,173.52,29.00090106]
[1729769734586,11.9744,173.61,173.5,1.0020705]